Cogmind - Beta 10.2 @@@ ROGUE MODE // 2021.06.03 @ 04:34:59 Player: keikakub Result: Destroyed by G-34 Mercenary with Small Laser Performance ------------- Evolutions (1) 500 Regions Visited (4) 800 Robots Destroyed (25) 125 Value Destroyed (716) 716 Prototype IDs (2) 40 Alien Tech Used (0) 0 Bonus (89) 89 TOTAL SCORE: 2270 Bonus ------- Follower Combat Kills 103 Friendly Fire -14 Cogmind --------- Core Integrity 0/400 Matter 292/300 Energy 84/100 System Corruption 0% Temperature Cool (20) Movement Core (50) Location -9/Storage Parts ------- > --- POWER (1) -------- (None) > --- PROPULSION (2) --- (None) > --- UTILITY (2) ------ Terrain Scan Processor > --- WEAPON (4) ------- (None) > --- INVENTORY (4) ---- Aluminum Leg Weight Redist. System Peak State ------------ > --- POWER ------------ Ion Engine > --- PROPULSION ------- Wheel Wheel > --- UTILITY ---------- Bomb Drone Bay > --- WEAPON ----------- Assault Rifle Light Cannon Improved Light Cannon Grenade Launcher > --- INVENTORY -------- Aluminum Leg Heat Sink Mining Laser [Rating: 22] Favorites ----------- Power Ion Engine Engine Ion Engine Propulsion Wheel Leg Aluminum Leg Wheel Wheel Utility Bomb Drone Bay Device Bomb Drone Bay Storage Medium Matter Pod Processor Terrain Scan Processor Protection Medium Armor Plating Weapon Small Laser Energy Gun Small Laser Ballistic Gun Assault Rifle Ballistic Cannon Improved Light Cannon Launcher Grenade Launcher Special Weapon Mining Laser Build | -11 -10 -10 -9 -9 ------- Run | Scr Mat Min Mat Sto Slots Evolved 2 | . . . 2 . Power . | . . . . . Propulsion . | . . . . . Utility . | . . . . . Weapon 2 | . . . 2 . Parts Attached 44 | 10 7 7 10 10 Power 6 | 1 1 1 2 1 Engine 6 | 1 1 1 2 1 Core . | . . . . . Reactor . | . . . . . Propulsion 9 | 4 . 3 2 . Treads . | . . . . . Leg 5 | 2 . 1 2 . Wheel 4 | 2 . 2 . . Hover . | . . . . . Flight . | . . . . . Utility 10 | 1 3 2 1 3 Device 4 | 1 1 1 . 1 Storage 3 | . 2 1 . . Processor 1 | . . . . 1 Hackware . | . . . . . Protection 2 | . . . 1 1 Artifact . | . . . . . Weapon 19 | 4 3 1 5 6 Energy Gun 8 | 3 1 . 2 2 Energy Cannon . | . . . . . Ballistic Gun 2 | 1 1 . . . Ballistic Cannon 3 | . . 1 1 1 Launcher 3 | . 1 . 1 1 Special Weapon 3 | . . . 1 2 Impact Weapon . | . . . . . Slashing Weapon . | . . . . . Piercing Weapon . | . . . . . Special Melee Weapon . | . . . . . Unidentified Prototypes 2 | . . 1 . 1 Parts Lost 13 | . 2 . 1 10 Power 2 | . 1 . . 1 Propulsion 2 | . . . . 2 Utility 1 | . . . . 1 Weapon 8 | . 1 . 1 6 Highest Loss Streak 10 | . 2 . 1 10 Average Slot Usage (%) 83 | . 89 89 72 79 Engine 12 | . 11 14 11 10 Leg 7 | . . . 8 20 Wheel 17 | . 28 28 12 . Device 10 | . 19 12 7 3 Storage 2 | . 1 6 . . Processor 1 | . . . . 5 Protection 1 | . . . 3 3 Energy Gun 10 | . 14 . 5 23 Ballistic Gun 7 | . 11 14 1 . Ballistic Cannon 9 | . . 6 20 10 Launcher 2 | . 1 7 . . Naked Turns . | . . . . . Heaviest Build 29 | 7 11 18 25 29 Greatest Support 20 | 20 20 20 20 20 Greatest Overweight (x) 1 | . . . 1 1 Average Overweight (x) . | . . . . . Largest Inventory Capacity 4 | 4 4 4 4 4 Average Capacity 4 | 4 4 4 4 4 Most Carried 4 | 4 4 4 4 4 Average Carried 3 | 2 2 3 3 3 Final Capacity 4 | 4 4 4 4 4 Final Carried 4 | 2 3 4 2 2 Class Distribution -------------------- 66% | Mutant 13% | Scavenger-Gunner 7% | Scavenger-Tank 7% | Tank 3% | Gunner Dominant Class ---------------- Mutant | -10/Materials Mutant | -10/Mines Mutant | -9/Materials Scavenger-Gunner | -9/Storage Resources | -11 -10 -10 -9 -9 ----------- Run | Scr Mat Min Mat Sto Matter Collected 885 | 318 91 229 152 95 Remotely . | . . . . . Salvage Created 690 | 78 208 140 47 217 Parts 41 | 3 15 5 3 15 Haulers Intercepted . | . . . . . Recyclers Shooed . | . . . . . Parts Field Recycled 3 | . . . . 3 Retrieved Matter 21 | . . . . 21 Parts Self-Destructed . | . . . . . Prevented . | . . . . . Kills | -11 -10 -10 -9 -9 ------- Run | Scr Mat Min Mat Sto Combat Hostiles Destroyed 20 | 1 4 5 2 8 Guns 8 | 1 4 . . 3 Cannons 4 | . . 1 2 1 AOE 8 | . . 4 . 4 Classes Destroyed 6 | 2 . . . 4 Worker 3 | 1 2 . . . Builder 1 | . . . . 1 Watcher 1 | . . . . 1 Swarmer 2 | . . . . 2 Grunt 17 | 1 4 5 2 5 Sentry 1 | . . . . 1 Best Kill Streak 4 | 1 4 3 1 4 Combat Bots Only 4 | 1 2 3 1 4 Max Kills in Single Turn 2 | 1 1 2 1 2 Gunslinging . | . . . . . Exploded 2 | . . 2 . 2 Melee . | . . . . . Uniques/NPCs Destroyed . | . . . . . Combat | -11 -10 -10 -9 -9 -------- Run | Scr Mat Min Mat Sto Damage Taken 1644 | 47 225 140 80 1152 Core 509 | . 26 72 . 411 Absorbed by Shields . | . . . . . Core Remaining (%) 80 | 100 . 60 . . Volleys Fired 72 | 6 26 20 3 17 Largest 4 | 2 2 2 3 4 Hottest 184 | 60 80 55 119 184 Shots Fired 145 | 12 51 34 8 40 Gun 112 | 12 51 20 3 26 Cannon 21 | . . 5 5 11 Launcher 11 | . . 9 . 2 Special 1 | . . . . 1 Kinetic 60 | 6 13 25 5 11 Thermal 68 | . 38 . 3 27 Explosive 11 | . . 9 . 2 Electromagnetic 6 | 6 . . . . Robot Hit Streak 11 | 6 5 7 11 6 Robot Miss Streak 4 | 2 4 3 1 4 Penetration Max . | . . . . . Secondary Targets 2 | . 2 . . . Max Gunslinging Chain 1 | . 1 . . . Shots Hit Robots 90 | 9 27 24 6 24 Core Hits 53 | 2 11 13 3 24 Critical Hits . | . . . . . Critical Kills . | . . . . . Critical Parts Destroyed . | . . . . . Melee Attacks . | . . . . . Impact . | . . . . . Slashing . | . . . . . Piercing . | . . . . . Sneak Attacks . | . . . . . Combat Hostiles . | . . . . . Follow-up Attacks . | . . . . . Damage Inflicted 1739 | 132 357 641 108 501 Guns 836 | 132 357 166 10 171 Cannons 293 | . . 93 98 102 Explosions 582 | . . 382 . 200 Melee . | . . . . . Ramming 4 | . . . . 4 Kinetic 598 | 61 78 259 98 102 Thermal 484 | . 279 . 10 195 Explosive 582 | . . 382 . 200 Electromagnetic 71 | 71 . . . . Impact . | . . . . . Slashing . | . . . . . Piercing . | . . . . . Highest Corruption 1 | . 1 1 . . Average Corruption 1 | . 1 1 . . Corruption Purged . | . . . . . Effects 3 | . 2 1 . . Message Errors 2 | . 1 1 . . Energy Discharges 1 | . 1 . . . Overload Shots . | . . . . . Overflow Damage 20 | . . 4 . 16 Projectiles . | . . . . . Explosions 20 | . . 4 . 16 Melee . | . . . . . Knockbacks 2 | . . . 1 1 Impact . | . . . . . Kinetic 2 | . . . 1 1 Secondary . | . . . . . Self-Inflicted Damage 56 | . . 54 . 2 Shots 3 | . . 3 . . Rammed 1 | . . . . 1 Targets Rammed 1 | . . . . 1 Kicked . | . . . . . Crushed . | . . . . . Highest Temperature 246 | 24 2 2 57 246 Average Temperature 92 | 16 2 2 23 112 Received Heat Transfer 462 | 24 126 51 . 261 Effects 6 | . . . . 6 Interference 6 | . . . . 6 Siege Activations . | . . . . . Robots Corrupted . | . . . . . Combat Hostiles . | . . . . . Parts Fried . | . . . . . Impact Corruptions . | . . . . . Robots Melted . | . . . . . Combat Hostiles . | . . . . . Parts Melted 2 | . . . . 2 Heat Transferred 1015 | . 625 . 25 365 Parts Sabotaged . | . . . . . Parts Stolen . | . . . . . Parts Stripped . | . . . . . Power Chain Reactions . | . . . . . Missiles Intercepted . | . . . . . Alert | -11 -10 -10 -9 -9 ------- Run | Scr Mat Min Mat Sto Peak Influence 328 | 25 151 228 132 328 Initial 88 | . 16 58 88 55 Average 122 | 4 80 182 93 148 Maximum Alert Level 1 | . . 1 . 1 Low Security (%) 87 | 100 100 84 100 66 Level 1 12 | . . 15 . 33 Level 2 . | . . . . . Level 3 . | . . . . . Level 4 . | . . . . . Level 5 . | . . . . . High Security . | . . . . . Max Security . | . . . . . Squads Dispatched 7 | . 1 . 2 4 Investigation 3 | . . . 2 1 Extermination . | . . . . . Reinforcement 3 | . 1 . . 2 Assault . | . . . . . Garrison 1 | . . . . 1 Intercept . | . . . . . Construction Impeded . | . . . . . Haulers Reinforced . | . . . . . Stealth | -11 -10 -10 -9 -9 --------- Run | Scr Mat Min Mat Sto Distress Signals 6 | . 1 . 1 4 Communications Jammed . | . . . . . Distress Signals . | . . . . . Times Spotted 50 | 1 8 4 12 25 Peak Tracking Total 8 | 1 4 3 2 8 Tactical Retreats 2 | . . 1 . 1 Traps | -11 -10 -10 -9 -9 ------- Run | Scr Mat Min Mat Sto Traps Triggered 2 | . 1 . . 1 Indirectly . | . . . . . Trap Hack Attempts . | . . . . . Triggered . | . . . . . Disarmed . | . . . . . Reprogrammed . | . . . . . Reused . | . . . . . Traps Extracted . | . . . . . Installed . | . . . . . Triggered . | . . . . . Machines | -11 -10 -10 -9 -9 ---------- Run | Scr Mat Min Mat Sto Machines Disabled 1 | . . . . 1 Max in Single Turn . | . . . . . Machines Sabotaged . | . . . . . Garrisons Compromised . | . . . . . Overloaded Fab Kills . | . . . . . Fab Network Shutdowns . | . . . . . Hacking | -11 -10 -10 -9 -9 --------- Run | Scr Mat Min Mat Sto Machines Accessed 10 | . . 1 4 5 Terminals 6 | . . . 3 3 Fabricators . | . . . . . Repair Stations 1 | . . . . 1 Recycling Units 2 | . . . 1 1 Scanalyzers . | . . . . . Garrison Access . | . . . . . Total Hacks 39 | . . 1 18 20 Successful 28 | . . 1 16 11 Failed 11 | . . . 2 9 Catastrophic 1 | . . . . 1 Database Lockouts . | . . . . . Manual . | . . . . . Terminals 21 | . . . 11 10 Fabricators . | . . . . . Repair Stations 5 | . . . . 5 Recycling Units 12 | . . . 7 5 Scanalyzers . | . . . . . Garrison Access . | . . . . . Terminal Hacks 15 | . . 1 10 4 Record 4 | . . . 3 1 Part Schematic 1 | . . . . 1 Open Door 2 | . . 1 . 1 Level Access Points 1 | . . . 1 . Alert Level 2 | . . . 2 . Unreport Threat 1 | . . . . 1 Locate Traps 1 | . . . 1 . Dispatch Records 2 | . . . 2 . Zone Layout 1 | . . . 1 . Fabricator Hacks . | . . . . . Repair Station Hacks 3 | . . . . 3 Scan Component 2 | . . . . 2 Repair 1 | . . . . 1 Recycling Unit Hacks 10 | . . . 6 4 Recycle Component 3 | . . . 2 1 Process 2 | . . . 1 1 Report Inventory 2 | . . . 2 . Retrieve Matter 2 | . . . 1 1 Retrieve Components 1 | . . . . 1 Scanalyzer . | . . . . . Garrison Access Hacks . | . . . . . Unauthorized Hacks . | . . . . . Terminals . | . . . . . Fabricators . | . . . . . Repair Stations . | . . . . . Recycling Units . | . . . . . Scanalyzers . | . . . . . Garrison Access . | . . . . . Data Cores Recovered . | . . . . . Used . | . . . . . Hacking Detections 7 | . . . 3 4 Full Trace Events 4 | . . . 2 2 Feedback Events . | . . . . . Feedback Blocked . | . . . . . Robot Schematics Acquired . | . . . . . Robots Built . | . . . . . Matter . | . . . . . Time . | . . . . . Total Robot Build Rating . | . . . . . Part Schematics Acquired 1 | . . . . 1 Parts Built . | . . . . . Matter . | . . . . . Time . | . . . . . Total Part Build Rating . | . . . . . Parts Repaired 1 | . . . . 1 Time 26 | . . . . 26 Parts Recycled 3 | . . . 2 1 Recycled Matter 155 | . . . 144 11 Retrieved Matter 11 | . . . . 11 Retrieved Components . | . . . . . Parts Scanalyzed . | . . . . . Part Schematics Acquired . | . . . . . Parts Damaged . | . . . . . Bothacking | -11 -10 -10 -9 -9 ------------ Run | Scr Mat Min Mat Sto Used RIF Installer . | . . . . . Robots Hacked . | . . . . . Non-combat . | . . . . . Combat . | . . . . . Robot Hacks Applied . | . . . . . Relay Couplers Released . | . . . . . Robots Rewired . | . . . . . Allies Hacked . | . . . . . Hacks Repelled . | . . . . . Allies | -11 -10 -10 -9 -9 -------- Run | Scr Mat Min Mat Sto Total Allies 5 | . . 5 . . Largest Group 5 | . . 5 4 2 Highest-Rated Group 104 | . . 104 73 47 Highest-Rated Ally 31 | . . 31 31 31 Total Orders . | . . . . . Ally Attacks 41 | . . . 13 28 Total Damage 382 | . . . . 382 Kills 8 | . . . . 8 Allies Corrupted . | . . . . . Allies Melted . | . . . . . Intel | -11 -10 -10 -9 -9 ------- Run | Scr Mat Min Mat Sto Robot Analysis Total . | . . . . . Derelict Logs Recovered 1 | . . 1 . . Drone Launches 18 | . . 16 2 . Drone Recoveries 2 | . . . 2 . Exploration | -11 -10 -10 -9 -9 ------------- Run | Scr Mat Min Mat Sto Turns Passed 1306 | 119 242 389 241 315 Spaces Moved 999 | 80 157 371 215 176 Core 33 | 21 . . . 12 Treads . | . . . . . Legs 283 | 57 . . 62 164 Wheels 683 | 2 157 371 153 . Hover . | . . . . . Flight . | . . . . . Fastest Speed 50 | 50 80 80 80 50 Average Speed 93 | 100 80 80 93 130 Slowest Speed 150 | 120 80 80 120 150 Overloaded Moves . | . . . . . Propulsion Burnouts . | . . . . . Robots Hopped . | . . . . . Cave-ins Triggered . | . . . . . Exploration Rate (%) 34 | 9 23 76 26 39 Regions Visited 4 Branch Regions 2 Pre-discovered Areas 1 | . . 1 . . Known Exits Taken . | . . . . . Unknown Exits Taken 4 | 1 1 1 1 . Scrap Searched 1 | . . 1 . . Spaces Dug . | . . . . . Terrain Destroyed 70 | . . 63 . 7 Melee . | . . . . . Projectile . | . . . . . AOE 70 | . . 63 . 7 Terrain Rammed . | . . . . . Walls Destroyed . | . . . . . Machines Disabled . | . . . . . Actions | -11 -10 -10 -9 -9 --------- Run | Scr Mat Min Mat Sto Total 1231 | 106 221 429 249 226 Wait 59 | . 24 19 10 6 Move 995 | 79 156 370 214 176 Hop . | . . . . . Pick Up 34 | 8 6 6 6 8 Fast Attach 5 | 2 . . 1 2 Attach 23 | 7 4 1 6 5 Detach 6 | 1 . . 2 3 Swap 16 | 1 3 6 3 3 Drop 20 | 2 2 7 4 5 Fire 72 | 6 26 20 3 17 Melee . | . . . . . Ram . | . . . . . Kick 1 | . . . . 1 Crush . | . . . . . Escape Stasis . | . . . . . Rewire . | . . . . . Trap . | . . . . . Miscellaneous . | . . . . . Route ------- -11/Scrapyard -10/Materials -10/Mines (discovered 2 exits: *Mat x2) -9/Materials (discovered 4 exits: Mat x3 / *Sto) -9/Storage History --------- Turn | Location | Event 2 | -11/Scrapyard | Met Revision 17 89 | -11/Scrapyard | Discovered new exit (range 8) 120 | -11/Scrapyard | Entered Materials 300 | -10/Materials | Build established: Mutant 337 | -10/Materials | Discovered new exit (range 7) 362 | -10/Materials | Entered Mines 391 | -10/Mines | Met a Derelict bent on vengeance 452 | -10/Mines | Received a Mining Laser from a helpful Derelict 478 | -10/Mines | Found the Drone Emporium 482 | -10/Mines | Found Prototype Device 484 | -10/Mines | Identified Bomb Drone Bay 540 | -10/Mines | Discovered new exit (range 13) 684 | -10/Mines | Discovered new exit (range 9) 688 | -10/Mines | Learned location of Zion (-7) 708 | -10/Mines | Assisted by bots powering up and referring to "LRC-V3" 751 | -10/Mines | Entered Materials 751 | -9/Materials | Accompanied by 20 allies 751 | -9/Materials | Evolved 2 slots: Weapon x2 759 | -9/Materials | Led the pair of lost Derelicts to an unsafe place 773 | -9/Materials | Identified exit to Materials 878 | -9/Materials | Discovered new exit (range 28) 992 | -9/Materials | Entered Storage 992 | -9/Storage | Accompanied by 2 allies 1045 | -9/Storage | Repaired Lgt. Cannon? 1251 | -9/Storage | Garrison activated, responded to threat 1300 | -9/Storage | Core integrity fell below 50% 1303 | -9/Storage | Core integrity fell below 20% 1307 | -9/Storage | Destroyed by G-34 Mercenary with Small Laser Last Messages --------------- [Achievement: Novice Programmer] The achievement interface (ESC then open Records) offers an effective way to explore all of your earned achievements as well as seek out new goals for future runs. ALERT: Suspicious activity at Terminal S012. Dispatching Investigation squad. G-34 Mercenary knocked back. Aluminum Leg destroyed. Imp. Light Cannon destroyed. G-34 Mercenary destroyed. Destroyed Flight Unit. S-10 Pest destroyed. Spread Laser destroyed. F-cell Engine destroyed. G-34 Mercenary destroyed. Grenade Launcher destroyed. Field Recycling Unit destroyed. Mining Laser destroyed. The unstable cave ceiling collapses. [Achievement: First Step to Greatness] Map ----- +----------------------------------------------------+ | ????????# ### """[#### =!#????????????????????? | | ????????# / # """%+ %![=#????????????????????? | | ????????? =+ ""%#####+######????????????????? | | ????????????# %==# *% #????????????????? | | ????????????# %*# ! ##????????????????? | | ????????????# # """???????????????? | | ????????????# # G"#??????????????? | | ????????????# !# """ """ """#??????????????? | | ????????????####/## """ """ ####??????????????? | | ???????????????#%## """ """ #?????????????????? | | ???????????????#%## #?????????????????? | | ???????????????# ##?#+####+##?????????????????? | | ???????????????# #??# #??# #??????????????????? | | ???????????????# #??# #??# #??????????????????? | | ???????????????# #??# #??# #??#######?????????? | | ????????+ ####=#### #### # [! #?????????? | | ????????# %[%* + #?????????? | | ????????# =%=! # |#?????????? | | ????????# ############# #?? #?????????? | | ????????# ???###### ####g #?? #?????????? | | ????????#?????# # #? #?????????? | | ??????????????# # g# #?????????? | | ??????????????+ ! # # #?????????? | | ??????????????# + +! ] #?????????? | | ??????????????# """"" # ########???????????? | | ???????????????? """"" @ # T#"?????????????? | | ??????????????# """"" "?????????????? | | ??????????????# =Y "?????????????? | | ??????????????######### *%%! ##"?????????????? | | ????????????????????# l %##???????????????? | | ??????????????????### ! #????????????????? | | ??????????????????#"" %! #????????????????? | | ??????????????????#"" *!! #????????????????? | | ??????????????????#"T #????????????????? | | ??????????????????#"" """ #????????????????? | | ??????????????????#"" """ #????????????????? | | ??????????????????### Y """ #????????????????? | | ????????????????????# #????????????????? | | ????????????????????### ######????????????????? | | ???????????????????????#??????????????????????? | | | | | | | | | | | | | | | | | | | | | +----------------------------------------------------+ Best States ------------- Heat Dissipation 45 Energy Generation 19 Energy Capacity 500 Matter Stores 323 Matter Capacity 500 Sight Range 16 Terrain Scan Density 85 Armor Coverage 225 Evasion (%) 50 Item Schematics ----------------- Gravmag System | -9/Storage | Hacked Robot Schematics ------------------ None Fabricated ------------ Nothing Alien Tech Used ----------------- None Achievements -------------- Crack Shot Everything Is Under Control First Step to Greatness Novice Programmer One Hack Too Far Part-time Mechanic Release The Drones! Risk Taker The More The Merrier Troublemaker Uninvited Guest Challenges ------------ None Game ------ Seed LauncherCloakRegenerator Manual? 0 Play Time 00:50:56 Cumulative 1.6 hours Start 2021.06.03 @ 03:37:10 End 2021.06.03 @ 04:34:59 Sessions 1 Manual Loads 0 Difficulty Rogue Special Mode None Game No. 2 Rogue 2 Adventurer 0 Explorer 0 Win Type - Total 0 Types 0/0/0/0/0/0/0/0/0 Lore% 0 Gallery% 2 Achievement% 4 Wizard Run 0 Options --------- ASCII 0 Keyboard 0 Movement Mouse Keybinds 1 Fullscreen 1 Font 24/Smallcaps Map View 76x50 Tactical HUD 0 Map Filters NONE Filters NONE Steam 1 RUN: 98e23d50-2015-4221-824b-13aa37834daa